Cogmind - Beta 13 @@@ ROGUE MODE // 2024.06.09 @ 21:53:33 Player: Minty Result: Destroyed by D-53 Grenadier with Mini Grenade Launcher Performance ------------- Evolutions (1) 500 Regions Visited (3) 600 Robots Destroyed (44) 220 Value Destroyed (1085) 1085 Prototype IDs (5) 100 Alien Tech Used (0) 0 Bonus (70) 70 TOTAL SCORE: 2575 Bonus ------- High Alert Combat Kills 70 Cogmind --------- Core Integrity 0/400 Matter 295/300 Energy 250/250 System Corruption 1% Temperature Cool (0) Movement Core (150) Ox2 Location -9/Mines Parts ------- > --- POWER (1) -------- Ion Engine > --- PROPULSION (2) --- (None) > --- UTILITY (3) ------ Improved Heat Sink Hacking Suite Hacking Suite > --- WEAPON (3) ------- Particle Gun > --- INVENTORY (5) ---- Sensor Array Hacking Suite Hacking Suite Grenade Launcher Peak State ------------ > --- POWER ------------ Improved Ion Engine > --- PROPULSION ------- Wheel Compact Wheel > --- UTILITY ---------- Hacking Suite Hacking Suite Hacking Suite > --- WEAPON ----------- Heavy EM Shotgun Heavy EM Shotgun Heavy EM Shotgun > --- INVENTORY -------- Improved Heat Sink Improved Heat Sink Small Storage Unit Hacking Suite Hacking Suite [Rating: 26] Favorites ----------- Power Improved Ion Engine Engine Improved Ion Engine Propulsion Aluminum Leg Treads Improved Treads Leg Aluminum Leg Wheel Compact Wheel Utility Hacking Suite Device Improved Heat Sink Storage Small Storage Unit Processor Machine Analyzer Hackware Hacking Suite Weapon Heavy EM Shotgun Energy Gun Heavy EM Shotgun Ballistic Gun Assault Rifle Launcher Grenade Launcher Build | -11 -10 -9 -9 ------- Run | Yrd Mat Mat Min Slots Evolved 2 | . . 2 . Power . | . . . . Propulsion . | . . . . Utility 1 | . . 1 . Weapon 1 | . . 1 . Parts Attached 41 | . 17 18 6 Power 3 | . 2 . 1 Engine 3 | . 2 . 1 Core . | . . . . Reactor . | . . . . Propulsion 14 | . 8 3 3 Treads 3 | . 3 . . Leg 2 | . . 1 1 Wheel 9 | . 5 2 2 Hover . | . . . . Flight . | . . . . Utility 7 | . 2 5 . Device 3 | . 2 1 . Storage . | . . . . Processor 1 | . . 1 . Hackware 3 | . . 3 . Protection . | . . . . Artifact . | . . . . Weapon 17 | . 5 10 2 Energy Gun 14 | . 4 8 2 Energy Cannon . | . . . . Ballistic Gun 2 | . 1 1 . Ballistic Cannon . | . . . . Launcher 1 | . . 1 . Special Weapon . | . . . . Impact Weapon . | . . . . Slashing Weapon . | . . . . Piercing Weapon . | . . . . Special Melee Weapon . | . . . . Unidentified Prototypes 3 | . . 3 . Corrupted Parts 1 | . 1 . . System Corruption 4 | . 4 . . Parts Lost 15 | . 5 4 6 Power 2 | . 1 . 1 Propulsion 5 | . 1 2 2 Utility 2 | . 1 1 . Weapon 6 | . 2 1 3 Highest Loss Streak 4 | . 4 2 4 To Critical Strikes . | . . . . Average Slot Usage (%) 93 | . 93 94 91 Engine 12 | . 13 11 10 Treads 3 | . 6 3 . Leg 6 | . 6 . 16 Wheel 11 | . 14 13 1 Device 7 | . 9 3 11 Storage 6 | . 14 1 . Hackware 14 | . . 27 22 Energy Gun 26 | . 22 30 29 Ballistic Gun 2 | . 4 2 . Naked Turns . | . . . . Heaviest Build 26 | 12 24 26 19 Greatest Support 46 | 20 46 46 20 Greatest Overweight (x) 6 | . 3 6 2 Average Overweight (x) . | . . . . Largest Inventory Capacity 8 | . 8 8 5 Average Capacity 6 | . 8 5 5 Most Carried 8 | . 8 7 5 Average Carried 5 | . 7 4 4 Final Capacity 8 | 8 8 5 5 Final Carried 8 | 6 8 4 4 Class Distribution -------------------- 42% | Mutant 34% | Hacker-Gunner 13% | Scavenger-Gunner 6% | Hacker-Mutant Dominant Class ---------------- Mutant | -10/Materials Hacker-Gunner | -9/Materials Scavenger-Gunner | -9/Mines Resources | -11 -10 -9 -9 ----------- Run | Yrd Mat Mat Min Matter Collected 722 | 200 205 267 50 Remotely . | . . . . Salvage Created 1472 | . 569 701 202 Parts 96 | . 30 54 12 Haulers Intercepted . | . . . . Recyclers Shooed 1 | . 1 . . Parts Field Recycled . | . . . . Retrieved Matter . | . . . . Parts Self-Destructed . | . . . . Prevented . | . . . . Kills | -11 -10 -9 -9 ------- Run | Yrd Mat Mat Min Combat Hostiles Destroyed 32 | . 11 18 3 Guns 27 | . 10 14 3 AOE 4 | . . 4 . Classes Destroyed 9 | . 6 3 . Worker 3 | . . 1 2 Builder 2 | . . 2 . Recycler 1 | . 1 . . Mechanic 1 | . 1 . . Operator 2 | . 1 1 . Watcher 3 | . 1 2 . Swarmer 11 | . 3 8 . Grunt 18 | . 8 7 3 Sentry 3 | . . 3 . Best Kill Streak 13 | . 4 13 3 Combat Bots Only 6 | . 4 6 3 Max Kills in Single Turn 3 | . 2 3 1 Gunslinging 1 | . 1 1 . Exploded 2 | . . 2 . Melee . | . . . . Uniques/NPCs Destroyed . | . . . . Combat | -11 -10 -9 -9 -------- Run | Yrd Mat Mat Min Hostile Shots Fired 166 | . 94 54 18 Missed 41 | . 19 20 2 Damage Taken 1853 | . 881 498 474 Core 643 | . 234 174 235 Absorbed by Shields . | . . . . Core Remaining (%) 53 | 100 6 . . Volleys Fired 87 | . 50 28 9 Largest 3 | . 2 3 3 Hottest 160 | . 100 150 160 Shots Fired 197 | . 98 78 21 Gun 193 | . 98 74 21 Cannon . | . . . . Launcher 4 | . . 4 . Special . | . . . . Kinetic 15 | . 15 . . Thermal 86 | . 83 . 3 Explosive 4 | . . 4 . Electromagnetic 92 | . . 74 18 Robot Hit Streak 7 | . 6 7 7 Robot Miss Streak 8 | . 5 8 2 Penetration Max . | . . . . Secondary Targets 7 | . 3 4 . Max Gunslinging Chain 2 | . 1 2 . Shots Hit Robots 117 | . 53 48 16 Core Hits 69 | . 25 34 10 Critical Kills . | . . . . Critical Parts Destroyed . | . . . . Critical Strikes 6 | . 6 . . Burn 6 | . 6 . . Melee Attacks . | . . . . Impact . | . . . . Slashing . | . . . . Piercing . | . . . . Sneak Attacks . | . . . . Combat Hostiles . | . . . . Follow-up Attacks . | . . . . Damage Inflicted 2142 | . 674 1182 286 Guns 1735 | . 673 776 286 Cannons . | . . . . Explosions 406 | . . 406 . Melee . | . . . . Ramming 1 | . 1 . . Kinetic 96 | . 96 . . Thermal 835 | . 577 228 30 Explosive 178 | . . 178 . Electromagnetic 1032 | . . 776 256 Impact . | . . . . Slashing . | . . . . Piercing . | . . . . Highest Corruption 4 | . 4 1 1 Average Corruption 1 | . 4 1 1 Corruption Purged . | . . . . Corruption Blocked . | . . . . Effects 5 | . 3 1 1 Matter Fused 1 | . 1 . . Energy Discharges 3 | . 1 1 1 Misfires 1 | . 1 . . Overload Shots . | . . . . Overflow Damage 41 | . . 41 . Projectiles . | . . . . Explosions 41 | . . 41 . Melee . | . . . . Knockbacks . | . . . . Impact . | . . . . Kinetic . | . . . . Secondary . | . . . . Self-Inflicted Damage 89 | . . 89 . Shots 4 | . . 4 . Rammed 1 | . 1 . . Targets Rammed 1 | . 1 . . Kicked . | . . . . Crushed . | . . . . Highest Temperature 484 | . 484 360 96 Average Temperature 161 | . 186 130 42 Received Heat Transfer 603 | . 402 144 57 Effects 11 | . 9 2 . Shutdowns 4 | . 4 . . Energy Bleed 3 | . 2 1 . Matter Decay 2 | . 1 1 . Short Circuit 2 | . 2 . . Siege Activations . | . . . . Robots Corrupted . | . . . . Combat Hostiles . | . . . . Parts Fried . | . . . . Impact Corruptions . | . . . . Robots Melted 1 | . 1 . . Combat Hostiles 1 | . 1 . . Parts Melted 7 | . 5 2 . Heat Transferred 2670 | . 2146 450 74 Parts Sabotaged . | . . . . Parts Stolen . | . . . . Parts Stripped . | . . . . Power Chain Reactions 5 | . . 5 . Alert | -11 -10 -9 -9 ------- Run | Yrd Mat Mat Min Peak Influence 675 | . 292 675 322 Initial 262 | . . 46 262 Average 222 | . 150 254 306 Maximum Alert Level 2 | . 1 2 1 Low Security (%) 50 | . 75 51 . Level 1 41 | . 24 23 100 Level 2 8 | . . 24 . Level 3 . | . . . . Level 4 . | . . . . Level 5 . | . . . . High Security . | . . . . Max Security . | . . . . Squads Dispatched 6 | . 3 3 . Investigation 4 | . 2 2 . Extermination . | . . . . Reinforcement 2 | . 1 1 . Assault . | . . . . Garrison . | . . . . Intercept . | . . . . Searches Triggered . | . . . . Construction Impeded . | . . . . Haulers Reinforced . | . . . . Active Scanning Responses . | . . . . Cargo Convoy Interrupts . | . . . . Stealth | -11 -10 -9 -9 --------- Run | Yrd Mat Mat Min Distress Signals 2 | . 1 1 . Communications Jammed . | . . . . Distress Signals . | . . . . Times Spotted 46 | . 16 25 5 Peak Tracking Total 8 | . 5 8 3 Tactical Retreats 1 | . 1 . . Traps | -11 -10 -9 -9 ------- Run | Yrd Mat Mat Min Traps Triggered 2 | . 2 . . Indirectly . | . . . . Trap Hack Attempts . | . . . . Triggered . | . . . . Disarmed . | . . . . Reprogrammed 4 | . . 4 . Reused 1 | . . 1 . Traps Extracted . | . . . . Installed . | . . . . Triggered 1 | . . 1 . Machines | -11 -10 -9 -9 ---------- Run | Yrd Mat Mat Min Machines Disabled 4 | . . 4 . Max in Single Turn 1 | . . 1 . Machines Repaired . | . . . . Machines Dismantled . | . . . . Machines Sabotaged 1 | . . 1 . Overloaded Fab Kills . | . . . . Hacking | -11 -10 -9 -9 --------- Run | Yrd Mat Mat Min Machines Accessed 4 | . 2 2 . Terminals 4 | . 2 2 . Fabricators . | . . . . Repair Stations . | . . . . Recycling Units . | . . . . Scanalyzers . | . . . . Garrison Access . | . . . . Total Hacks 17 | . 9 8 . Successful 13 | . 5 8 . Failed 4 | . 4 . . Catastrophic 1 | . 1 . . Database Lockouts . | . . . . Manual 6 | . 4 2 . Terminals 17 | . 9 8 . Fabricators . | . . . . Repair Stations . | . . . . Recycling Units . | . . . . Scanalyzers . | . . . . Garrison Access . | . . . . Terminal Hacks 10 | . 4 6 . Prototype ID Bank 1 | . 1 . . Emergency Access Points 2 | . . 2 . Scanalyzer Index 1 | . . 1 . Locate Traps 2 | . . 2 . Reprogram Traps 1 | . . 1 . Security Status 1 | . 1 . . Transport Status 1 | . 1 . . Hauler Manifests 1 | . 1 . . Fabricator Hacks . | . . . . Repair Station Hacks . | . . . . Recycling Unit Hacks . | . . . . Scanalyzer . | . . . . Garrison Access Hacks . | . . . . Unauthorized Hacks 3 | . 1 2 . Terminals 3 | . 1 2 . Disrupt 1 | . . 1 . Operators 1 | . 1 . . Sabotage 1 | . . 1 . Fabricators . | . . . . Repair Stations . | . . . . Recycling Units . | . . . . Scanalyzers . | . . . . Garrison Access . | . . . . Data Cores Recovered . | . . . . Used . | . . . . Hacking Detections 4 | . 2 2 . Full Trace Events 3 | . 2 1 . Feedback Events 1 | . . 1 . Corruption 1 | . . 1 . Feedback Blocked . | . . . . Robot Schematics Acquired . | . . . . Robots Built . | . . . . Authchips . | . . . . Time . | . . . . Total Robot Build Rating . | . . . . Part Schematics Acquired . | . . . . Parts Built . | . . . . Authchips . | . . . . Time . | . . . . Total Part Build Rating . | . . . . Parts Repaired . | . . . . Time . | . . . . Parts Recycled . | . . . . Recycled Matter . | . . . . Retrieved Matter . | . . . . Retrieved Components . | . . . . Parts Scanalyzed . | . . . . Part Schematics Acquired . | . . . . Parts Damaged . | . . . . Bothacking | -11 -10 -9 -9 ------------ Run | Yrd Mat Mat Min Used RIF Installer . | . . . . Robots Hacked . | . . . . Non-combat . | . . . . Combat . | . . . . Robot Hacks Applied . | . . . . Relay Couplers Released . | . . . . Fabnet Peak Effective % . | . . . . Robots Rewired . | . . . . Allies Hacked . | . . . . Hacks Repelled . | . . . . Allies | -11 -10 -9 -9 -------- Run | Yrd Mat Mat Min Total Allies . | . . . . Largest Group . | . . . . Highest-Rated Group . | . . . . Highest-Rated Ally . | . . . . Total Orders . | . . . . Ally Attacks . | . . . . Total Damage . | . . . . Kills . | . . . . Allies Corrupted . | . . . . Allies Melted . | . . . . Intel | -11 -10 -9 -9 ------- Run | Yrd Mat Mat Min Robot Analysis Total . | . . . . Derelict Logs Recovered . | . . . . Drone Launches . | . . . . Drone Recoveries . | . . . . Exploration | -11 -10 -9 -9 ------------- Run | Yrd Mat Mat Min Turns Passed 1040 | . 434 376 230 Spaces Moved 562 | 1 217 192 152 Core 12 | . 3 5 4 Treads 65 | . 34 31 . Legs 191 | 1 46 3 141 Wheels 294 | . 134 153 7 Hover . | . . . . Flight . | . . . . Fastest Speed 80 | 120 80 90 80 Average Speed 116 | 120 109 116 127 Slowest Speed 350 | 120 200 350 190 Overloaded Moves . | . . . . Propulsion Burnouts . | . . . . Robots Hopped . | . . . . Cave-ins Triggered . | . . . . Exploration Rate (%) 24 | 2 35 19 43 Regions Visited 3 Branch Regions 1 Pre-discovered Areas . | . . . . Known Exits Taken . | . . . . Unknown Exits Taken 3 | 1 1 1 . Scrap Searched 1 | . . . 1 Spaces Dug . | . . . . Terrain Destroyed 32 | . . 32 . Melee . | . . . . Projectile . | . . . . AOE 32 | . . 32 . Terrain Rammed . | . . . . Walls Destroyed . | . . . . Machines Disabled . | . . . . Actions | -11 -10 -9 -9 --------- Run | Yrd Mat Mat Min Total 772 | . 315 287 170 Wait 41 | . 20 21 . Move 559 | . 216 191 152 Hop . | . . . . Pick Up 9 | . 2 7 . Fast Attach 24 | . 9 10 5 Attach 8 | . 3 4 1 Detach 11 | . 4 6 1 Swap 9 | . 5 4 . Drop 23 | . 5 16 2 Fire 87 | . 50 28 9 Melee . | . . . . Ram . | . . . . Kick . | . . . . Crush 1 | . 1 . . Escape Stasis . | . . . . Rewire . | . . . . Trap . | . . . . Miscellaneous . | . . . . Route ------- -11/Scrapyard -10/Materials (discovered 2 exits: *Mat / [*Min]) -9/Materials (discovered 2 exits: [*Min] / [*Sto]) -9/Mines (discovered 1 exit: [*Mat]) History --------- Turn | Location | Event 1 | -11/Scrapyard | Discovered new exit (range 0) 1 | -11/Scrapyard | Entered Materials 173 | -10/Materials | Discovered new exit (range 9) 301 | -10/Materials | Core integrity fell below 50% 312 | -10/Materials | Build established: Mutant 332 | -10/Materials | Core integrity fell below 20% 355 | -10/Materials | Lost 4 parts (1n1u2w) 424 | -10/Materials | Discovered new exit (range 8) 435 | -10/Materials | Entered another Materials area 435 | -9/Materials | Evolved 2 slots: Utility x1, Weapon x1 542 | -9/Materials | Discovered new exit (range 10) 756 | -9/Materials | Discovered new exit (range 16) 811 | -9/Materials | Entered Mines 887 | -9/Mines | Assembled infested the area 1030 | -9/Mines | Discovered new exit (range 6) 1031 | -9/Mines | Core integrity fell below 50% 1035 | -9/Mines | Core integrity fell below 20% 1041 | -9/Mines | Destroyed by D-53 Grenadier with Mini Grenade Launcher Last Messages --------------- 01030_ U-05 Engineer lays Concrete. 01030_ Imp. EM Shotgun destroyed. 01030_ Hvy. EM Shotgun destroyed. 01030_ EXIT=FOUND 01030_ U-05 Engineer destroyed. 01031_ U-05 Engineer lays Concrete. 01032_ The unstable cave ceiling collapses. 01032_ U-05 Engineer lays Concrete. 01032_ Wheel destroyed. 01033_ U-05 Engineer lays Concrete. 01033_ K-01 Serf collects debris. 01033_ U-05 Engineer builds a Wall. 01034_ U-05 Engineer lays Concrete. 01034_ Wheel destroyed. 01034_ D-53 Grenadier destroyed. 01035_ U-05 Engineer builds a Wall. 01037_ U-05 Engineer lays Concrete. 01038_ K-01 Serf collects debris. 01038_ U-05 Engineer builds a Wall. 01040_ The unstable cave ceiling collapses. Map ----- +----------------------------------------------------+ | ???# #??# #??????## #????????????? | | ???###### #??# #????### #####????????????? | | ??????### #### #???## ##??????????????? | | ??????# #??## ##?????????????? | | ??????# #?## ##????????????? | | ??????# ########## #????????????? | | ??????# ???????## #????????????? | | ??????# ???????# #????????????? | | ??????# ??????# #????????????? | | ??????#| ??????# ## #????????????? | | ??????#%*??????## ?# ##????????????? | | ??????#! ???????#### #?# #####?????????????? | | ?????? ????###???###??# ####??????????????? | | ?????? ?????? ???????# #??????????????? | | ?????? ??????? ??????# #??????????????? | | ????? ????????#%########## ##?????????????? | | ?????## ???????## ## # ## ##????????????? | | ??????????###### u# # #% # #????????????? | | ??????????# !d # #????????????? | | ?????????# = #????????????? | | ????????????? =# #????????????? | | ???????????????????# # # #????????????? | | ???????????????????# #????????????? | | ???????????????????# ###????????????? | | ???????????????????## #??????????????? | | ????????????????????# @ #??????????????? | | ????????????????????# u #??????????????? | | ????????????????????# < #??????????????? | | ????????????????????## ######??????????????? | | ?????????????????????## #???????????????????? | | ?????????????????????? ????????????????????? | | ?????????????????????## ????????????????????? | | ??????????????????????# k????????????????????? | | ??????????????????????# ????????????????????? | | ??????????????????????# ????????????????????? | | ??????????????????????# ????????????????????? | | ??????????????????????# ????????????????????? | | ??????????????????????##?????????????????????? | | ?????????????????????????????????????????????? | | ?????????????????????????????????????????????? | | ?????????????????????????????????????????????? | | ?????????????????????????????????????????????? | | ?????????????????????????????????????????????? | | ?????????????????????????????????????????????? | | ?????????????????????????????????????????????? | | | | | | | | | | | +----------------------------------------------------+ Best States ------------- Heat Dissipation 42 Energy Generation 12 Energy Capacity 265 Matter Stores 300 Matter Capacity 300 Sight Range 16 Terrain Scan Density 10 Evasion (%) 55 Recoil Reduction 2 Offensive Hacking 30 Item Schematics ----------------- None Robot Schematics ------------------ None Fabricated ------------ Nothing Alien Tech Used ----------------- None Achievements -------------- None Challenges ------------ None Game ------ Seed LegNavigationLaser Manual? 0 Play Time 00:07:49 Cumulative 756.8 hours Start 2024.06.09 @ 21:46:58 End 2024.06.09 @ 21:53:33 Sessions 1 Manual Loads 0 Difficulty Rogue Special Mode None Game No. 843 Rogue 567 Adventurer 123 Explorer 153 Win Type - Total 28 Types 22/0/4/1/0/0/0/1/0 Lore% 84 Gallery% 92 Achievement% 76 Wizard Run 0 Options --------- Layout 0 ASCII 0 Keyboard 1 Movement Numpad Keybinds 0 Fullscreen 2 Font 18/Terminus Map View 76x50 Zoom Use 0% Tactical HUD 1 Map Filters NONE Filters SHIFT_HUE(360) Steam 1 RUN: e84d2162-1cdb-4017-bdb4-5ae6ee54579d